[Event "Titled Tuesday Blitz May 30 Late 2023"]
[White "Horokoskii"]
[Black "Vaglio Munoz, Jaime"]
[BlackFideId "6500145"]
[WhiteElo "2133"]
[BlackElo "2199"]
[Result "0-1"]
[Round "07"]
[TimeControl "180+2"]
[Date "2023.05.31"]
[WhiteClock "0:00:03"]
[BlackClock "0:00:42"]

1. d4 {[%clk 0:03:00]}  c6 {[%clk 0:02:59]} 2. c4 {[%clk 0:02:52]}  b5 {[%clk 0:02:58]} 3. cxb5 {[%clk 0:02:51]}  cxb5 {[%clk 0:02:59]} 4. e4 {[%clk 0:02:50]}  Bb7 {[%clk 0:02:59]} 5. f3 {[%clk 0:02:48]}  a6 {[%clk 0:02:57]} 6. Be3 {[%clk 0:02:47]}  d5 {[%clk 0:02:52]} 7. e5 {[%clk 0:02:46]}  Bc8 {[%clk 0:02:49]} 8. Bd3 {[%clk 0:02:43]}  Nh6 {[%clk 0:02:45]} 9. Qc2 {[%clk 0:02:39]}  g6 {[%clk 0:02:44]} 10. Ne2 {[%clk 0:02:36]}  Bf5 {[%clk 0:02:43]} 11. g4 {[%clk 0:02:19]}  Bxd3 {[%clk 0:02:41]} 12. Qxd3 {[%clk 0:02:18]}  e6 {[%clk 0:02:41]} 13. Nbc3 {[%clk 0:02:15]}  Nc6 {[%clk 0:02:39]} 14. O-O {[%clk 0:02:07]}  Rc8 {[%clk 0:02:37]} 15. Rac1 {[%clk 0:02:02]}  Bg7 {[%clk 0:02:36]} 16. Ng3 {[%clk 0:01:51]}  Ng8 {[%clk 0:02:26]} 17. f4 {[%clk 0:01:47]}  Qh4 {[%clk 0:02:24]} 18. Qe2 {[%clk 0:01:46]}  h5 {[%clk 0:02:22]} 19. gxh5 {[%clk 0:01:41]}  gxh5 {[%clk 0:02:19]} 20. f5 {[%clk 0:01:39]}  Qg4 {[%clk 0:02:19]} 21. f6 {[%clk 0:01:06]}  Bh6 {[%clk 0:02:14]} 22. Bxh6 {[%clk 0:00:57]}  Nxh6 {[%clk 0:02:07]} 23. Nxb5 {[%clk 0:00:44]}  axb5 {[%clk 0:02:02]} 24. Qxb5 {[%clk 0:00:44]}  O-O {[%clk 0:01:40]} 25. Rxc6 {[%clk 0:00:38]}  Rb8 {[%clk 0:01:31]} 26. Qe2 {[%clk 0:00:28]}  Qxd4+ {[%clk 0:01:23]} 27. Qf2 {[%clk 0:00:22]}  Qxe5 {[%clk 0:01:21]} 28. Qg2 {[%clk 0:00:15]}  Kh8 {[%clk 0:01:12]} 29. Nxh5 {[%clk 0:00:14]}  Rg8 {[%clk 0:01:08]} 30. Ng7 {[%clk 0:00:11]}  Rxb2 {[%clk 0:01:08]} 31. Rc2 {[%clk 0:00:10]}  Rb4 {[%clk 0:00:53]} 32. Qd2 {[%clk 0:00:07]}  Rg4+ {[%clk 0:00:52]} 33. Kh1 {[%clk 0:00:07]}  Qe4+ {[%clk 0:00:49]} 34. Qg2 {[%clk 0:00:06]}  Rxg2 {[%clk 0:00:46]} 35. Rxg2 {[%clk 0:00:06]}  Ng4 {[%clk 0:00:44]} 36. Rf3 {[%clk 0:00:03]}  Qxf3 {[%clk 0:00:42]} 0-1


[Site "https://www.chess.com"]

[Event "Titled Tuesday Blitz May 30 Late 2023"]
[White "The_Straightforward_Rook"]
[Black "Stead, Kerry"]
[BlackFideId "3202577"]
[WhiteElo "2272"]
[BlackElo "1997"]
[Result "1-0"]
[Round "07"]
[TimeControl "180+2"]
[Date "2023.05.31"]
[WhiteClock "0:02:40"]
[BlackClock "0:00:21"]

1. e4 {[%clk 0:03:00]}  e6 {[%clk 0:02:59]} 2. Nf3 {[%clk 0:02:59]}  d5 {[%clk 0:02:38]} 3. d3 {[%clk 0:03:00]}  Nf6 {[%clk 0:02:08]} 4. Nbd2 {[%clk 0:02:56]}  c5 {[%clk 0:01:57]} 5. g3 {[%clk 0:02:55]}  Nc6 {[%clk 0:01:49]} 6. Bg2 {[%clk 0:02:55]}  Be7 {[%clk 0:01:44]} 7. O-O {[%clk 0:02:55]}  O-O {[%clk 0:01:38]} 8. Re1 {[%clk 0:02:55]}  e5 {[%clk 0:01:05]} 9. exd5 {[%clk 0:02:52]}  Nxd5 {[%clk 0:01:03]} 10. Nxe5 {[%clk 0:02:51]}  Nxe5 {[%clk 0:00:45]} 11. Rxe5 {[%clk 0:02:52]}  Be6 {[%clk 0:00:27]} 12. Nc4 {[%clk 0:02:44]}  Bf6 {[%clk 0:00:21]} 13. Re1 {[%clk 0:02:40]} 1-0


[Site "https://www.chess.com"]

[Event "Titled Tuesday Blitz May 30 Late 2023"]
[White "NtcPou"]
[Black "Wang, Alexander J"]
[BlackFideId "30955270"]
[WhiteElo "2039"]
[BlackElo "2260"]
[Result "1-0"]
[Round "07"]
[TimeControl "180+2"]
[Date "2023.05.31"]
[WhiteClock "0:02:30"]
[BlackClock "0:02:29"]

1. e4 {[%clk 0:02:59]}  c5 {[%clk 0:02:59]} 2. Nf3 {[%clk 0:02:59]}  e6 {[%clk 0:02:54]} 3. g3 {[%clk 0:02:57]}  Nc6 {[%clk 0:02:51]} 4. Bg2 {[%clk 0:02:57]}  Nf6 {[%clk 0:02:51]} 5. Qe2 {[%clk 0:02:56]}  d5 {[%clk 0:02:51]} 6. exd5 {[%clk 0:02:55]}  Nxd5 {[%clk 0:02:49]} 7. O-O {[%clk 0:02:55]}  Be7 {[%clk 0:02:49]} 8. c4 {[%clk 0:02:48]}  Nf6 {[%clk 0:02:48]} 9. Nc3 {[%clk 0:02:46]}  O-O {[%clk 0:02:47]} 10. Rd1 {[%clk 0:02:41]}  Nd4 {[%clk 0:02:45]} 11. Nxd4 {[%clk 0:02:41]}  cxd4 {[%clk 0:02:46]} 12. Nb5 {[%clk 0:02:40]}  a6 {[%clk 0:02:44]} 13. Na3 {[%clk 0:02:38]}  Bxa3 {[%clk 0:02:44]} 14. bxa3 {[%clk 0:02:38]}  Rb8 {[%clk 0:02:40]} 15. d3 {[%clk 0:02:37]}  Re8 {[%clk 0:02:39]} 16. Qe5 {[%clk 0:02:31]}  Ra8 {[%clk 0:02:29]} 17. Bb2 {[%clk 0:02:30]} 1-0


[Site "https://www.chess.com"]

[Event "Titled Tuesday Blitz May 30 Late 2023"]
[White "Mendez Machado, Andre"]
[Black "Burke, Paul"]
[WhiteFideId "6603793"]
[BlackFideId "2605767"]
[WhiteElo "1984"]
[BlackElo "1913"]
[Result "1-0"]
[Round "07"]
[TimeControl "180+2"]
[Date "2023.05.31"]
[WhiteClock "0:00:04"]
[BlackClock "0:00:01"]

1. e4 {[%clk 0:03:00]}  e5 {[%clk 0:02:16]} 2. Nf3 {[%clk 0:02:58]}  Nc6 {[%clk 0:02:16]} 3. Bc4 {[%clk 0:02:58]}  Be7 {[%clk 0:02:16]} 4. d4 {[%clk 0:02:56]}  exd4 {[%clk 0:02:15]} 5. Nxd4 {[%clk 0:02:57]}  d6 {[%clk 0:02:16]} 6. Nc3 {[%clk 0:02:54]}  Nf6 {[%clk 0:02:15]} 7. Be3 {[%clk 0:02:53]}  O-O {[%clk 0:02:15]} 8. O-O {[%clk 0:02:53]}  Ne5 {[%clk 0:02:13]} 9. Be2 {[%clk 0:02:51]}  c5 {[%clk 0:02:13]} 10. Nf3 {[%clk 0:02:20]}  Nxf3+ {[%clk 0:02:11]} 11. Bxf3 {[%clk 0:02:21]}  Be6 {[%clk 0:02:06]} 12. a4 {[%clk 0:02:06]}  h6 {[%clk 0:01:37]} 13. a5 {[%clk 0:02:04]}  Rb8 {[%clk 0:01:30]} 14. Bf4 {[%clk 0:01:53]}  b5 {[%clk 0:01:25]} 15. e5 {[%clk 0:01:49]}  Ne8 {[%clk 0:01:18]} 16. Qc1 {[%clk 0:01:06]}  b4 {[%clk 0:01:08]} 17. Ne4 {[%clk 0:01:02]}  d5 {[%clk 0:01:04]} 18. Ng3 {[%clk 0:00:55]}  Nc7 {[%clk 0:00:54]} 19. Rd1 {[%clk 0:00:49]}  Qc8 {[%clk 0:00:53]} 20. Nh5 {[%clk 0:00:45]}  Bg4 {[%clk 0:00:44]} 21. Bxg4 {[%clk 0:00:20]}  Qxg4 {[%clk 0:00:42]} 22. Ng3 {[%clk 0:00:20]}  Ne6 {[%clk 0:00:38]} 23. Bd2 {[%clk 0:00:18]}  Nd4 {[%clk 0:00:32]} 24. h3 {[%clk 0:00:18]}  Qxg3 {[%clk 0:00:31]} 25. fxg3 {[%clk 0:00:18]}  Ne2+ {[%clk 0:00:31]} 26. Kh2 {[%clk 0:00:18]}  Nxc1 {[%clk 0:00:31]} 27. Bxc1 {[%clk 0:00:17]}  Rfd8 {[%clk 0:00:29]} 28. Bf4 {[%clk 0:00:15]}  Rb5 {[%clk 0:00:27]} 29. a6 {[%clk 0:00:13]}  g5 {[%clk 0:00:26]} 30. Bc1 {[%clk 0:00:10]}  d4 {[%clk 0:00:24]} 31. b3 {[%clk 0:00:10]}  Rd5 {[%clk 0:00:23]} 32. Re1 {[%clk 0:00:10]}  Rb6 {[%clk 0:00:20]} 33. h4 {[%clk 0:00:10]}  Re6 {[%clk 0:00:19]} 34. hxg5 {[%clk 0:00:09]}  hxg5 {[%clk 0:00:19]} 35. Bd2 {[%clk 0:00:08]}  Rdxe5 {[%clk 0:00:18]} 36. Rf1 {[%clk 0:00:06]}  Rh6+ {[%clk 0:00:15]} 37. Kg1 {[%clk 0:00:06]}  Rf6 {[%clk 0:00:14]} 38. Rfe1 {[%clk 0:00:03]}  Rfe6 {[%clk 0:00:14]} 39. Rf1 {[%clk 0:00:03]}  f6 {[%clk 0:00:12]} 40. Rad1 {[%clk 0:00:03]}  Re2 {[%clk 0:00:12]} 41. Bc1 {[%clk 0:00:03]}  Kg7 {[%clk 0:00:10]} 42. Bd2 {[%clk 0:00:03]}  Bd6 {[%clk 0:00:09]} 43. g4 {[%clk 0:00:02]}  R2e4 {[%clk 0:00:07]} 44. Rf2 {[%clk 0:00:02]}  Rxg4 {[%clk 0:00:07]} 45. Kf1 {[%clk 0:00:02]}  Bg3 {[%clk 0:00:06]} 46. Rf3 {[%clk 0:00:02]}  Bf4 {[%clk 0:00:06]} 47. Bxf4 {[%clk 0:00:02]}  Rxf4 {[%clk 0:00:06]} 48. Kf2 {[%clk 0:00:02]}  Rxf3+ {[%clk 0:00:05]} 49. gxf3 {[%clk 0:00:03]}  Re3 {[%clk 0:00:04]} 50. Ra1 {[%clk 0:00:03]}  f5 {[%clk 0:00:03]} 51. Ra5 {[%clk 0:00:04]}  Rc3 {[%clk 0:00:02]} 52. Rb5 {[%clk 0:00:03]}  Rxc2+ {[%clk 0:00:01]} 53. Kg3 {[%clk 0:00:04]}  d3 {[%clk 0:00:01]} 54. Rb7+ {[%clk 0:00:04]}  Kg6 {[%clk 0:00:01]} 55. Rxa7 {[%clk 0:00:04]} 1-0


[Site "https://www.chess.com"]

[Event "Titled Tuesday Blitz May 30 Late 2023"]
[White "Escalante Ramirez, Rafael"]
[Black "Schut, Han"]
[WhiteFideId "3900177"]
[BlackFideId "1005561"]
[WhiteElo "2219"]
[BlackElo "2024"]
[Result "0-1"]
[Round "07"]
[TimeControl "180+2"]
[Date "2023.05.31"]
[WhiteClock "0:00:08"]
[BlackClock "0:00:19"]

1. Nf3 {[%clk 0:03:00]}  Nf6 {[%clk 0:02:59]} 2. d4 {[%clk 0:03:01]}  g6 {[%clk 0:03:00]} 3. c4 {[%clk 0:03:01]}  Bg7 {[%clk 0:03:00]} 4. g3 {[%clk 0:03:01]}  O-O {[%clk 0:02:59]} 5. Bg2 {[%clk 0:03:01]}  d5 {[%clk 0:03:00]} 6. cxd5 {[%clk 0:03:01]}  Nxd5 {[%clk 0:03:01]} 7. O-O {[%clk 0:03:01]}  c5 {[%clk 0:03:01]} 8. e4 {[%clk 0:03:00]}  Nb6 {[%clk 0:02:57]} 9. d5 {[%clk 0:03:00]}  e6 {[%clk 0:02:56]} 10. Nc3 {[%clk 0:02:50]}  exd5 {[%clk 0:02:55]} 11. Nxd5 {[%clk 0:02:47]}  Nxd5 {[%clk 0:02:47]} 12. exd5 {[%clk 0:02:47]}  Bf5 {[%clk 0:02:47]} 13. Qb3 {[%clk 0:02:41]}  Qb6 {[%clk 0:02:42]} 14. Be3 {[%clk 0:02:08]}  Qxb3 {[%clk 0:02:22]} 15. axb3 {[%clk 0:02:08]}  Nd7 {[%clk 0:02:22]} 16. Nd2 {[%clk 0:01:55]}  Bxb2 {[%clk 0:02:09]} 17. Ra2 {[%clk 0:01:50]}  Bc3 {[%clk 0:01:49]} 18. d6 {[%clk 0:01:49]}  Rfb8 {[%clk 0:01:36]} 19. Rc1 {[%clk 0:01:32]}  Bb4 {[%clk 0:01:25]} 20. Ne4 {[%clk 0:01:14]}  b6 {[%clk 0:01:15]} 21. Ng5 {[%clk 0:01:06]}  a5 {[%clk 0:01:14]} 22. Bxa8 {[%clk 0:00:46]}  Rxa8 {[%clk 0:01:15]} 23. Bd2 {[%clk 0:00:43]}  Rd8 {[%clk 0:01:08]} 24. Bxb4 {[%clk 0:00:42]}  cxb4 {[%clk 0:01:09]} 25. Rc7 {[%clk 0:00:38]}  h6 {[%clk 0:01:06]} 26. Nf3 {[%clk 0:00:35]}  Nc5 {[%clk 0:01:00]} 27. Nd4 {[%clk 0:00:33]}  Rxd6 {[%clk 0:00:53]} 28. Nxf5 {[%clk 0:00:33]}  gxf5 {[%clk 0:00:54]} 29. Re2 {[%clk 0:00:29]}  Nxb3 {[%clk 0:00:47]} 30. Re8+ {[%clk 0:00:27]}  Kg7 {[%clk 0:00:47]} 31. Ree7 {[%clk 0:00:26]}  Rf6 {[%clk 0:00:47]} 32. f4 {[%clk 0:00:20]}  Nc5 {[%clk 0:00:43]} 33. h3 {[%clk 0:00:15]}  b3 {[%clk 0:00:42]} 34. Re2 {[%clk 0:00:14]}  a4 {[%clk 0:00:39]} 35. Ra7 {[%clk 0:00:14]}  b5 {[%clk 0:00:28]} 36. Ra5 {[%clk 0:00:14]}  Rb6 {[%clk 0:00:27]} 37. Re5 {[%clk 0:00:13]}  b2 {[%clk 0:00:24]} 38. Re1 {[%clk 0:00:12]}  Nb3 {[%clk 0:00:19]} 39. Ra8 {[%clk 0:00:09]}  Nd2 {[%clk 0:00:19]} 40. Re7 {[%clk 0:00:08]}  b1=Q+ {[%clk 0:00:19]} 0-1


[Site "https://www.chess.com"]

[Event "Titled Tuesday Blitz May 30 Late 2023"]
[White "Demidov, Mikhail"]
[Black "Bluebaum, Matthias"]
[WhiteFideId "4197143"]
[BlackFideId "24651516"]
[WhiteElo "2500"]
[BlackElo "2639"]
[Result "0-1"]
[Round "08"]
[TimeControl "180+2"]
[Date "2023.05.31"]
[WhiteClock "0:00:06"]
[BlackClock "0:00:53"]

1. Nf3 {[%clk 0:03:00]}  d5 {[%clk 0:03:00]} 2. d4 {[%clk 0:03:01]}  e6 {[%clk 0:03:00]} 3. Bf4 {[%clk 0:03:01]}  c5 {[%clk 0:02:59]} 4. c3 {[%clk 0:02:59]}  Nc6 {[%clk 0:02:59]} 5. e3 {[%clk 0:03:00]}  Bd6 {[%clk 0:03:00]} 6. Bg3 {[%clk 0:02:57]}  Nge7 {[%clk 0:03:00]} 7. Bd3 {[%clk 0:02:55]}  O-O {[%clk 0:02:59]} 8. Nbd2 {[%clk 0:02:53]}  cxd4 {[%clk 0:02:59]} 9. exd4 {[%clk 0:02:48]}  f6 {[%clk 0:02:58]} 10. c4 {[%clk 0:02:39]}  dxc4 {[%clk 0:02:53]} 11. Bxc4 {[%clk 0:02:36]}  Bxg3 {[%clk 0:02:44]} 12. hxg3 {[%clk 0:02:36]}  Nxd4 {[%clk 0:02:45]} 13. Nxd4 {[%clk 0:02:19]}  Qxd4 {[%clk 0:02:46]} 14. Qc2 {[%clk 0:02:18]}  Qe5+ {[%clk 0:02:41]} 15. Kf1 {[%clk 0:02:17]}  f5 {[%clk 0:02:36]} 16. Re1 {[%clk 0:02:16]}  Qf6 {[%clk 0:02:32]} 17. Qb3 {[%clk 0:02:14]}  Nc6 {[%clk 0:01:54]} 18. Bxe6+ {[%clk 0:01:58]}  Kh8 {[%clk 0:01:54]} 19. Nf3 {[%clk 0:01:45]}  Re8 {[%clk 0:01:42]} 20. Bd5 {[%clk 0:01:17]}  Rxe1+ {[%clk 0:01:36]} 21. Nxe1 {[%clk 0:01:14]}  Nd4 {[%clk 0:01:30]} 22. Qc3 {[%clk 0:01:00]}  Bd7 {[%clk 0:01:25]} 23. Rh4 {[%clk 0:00:45]}  Bb5+ {[%clk 0:01:12]} 24. Bc4 {[%clk 0:00:43]}  Rc8 {[%clk 0:01:03]} 25. Rxd4 {[%clk 0:00:15]}  Rxc4 {[%clk 0:01:03]} 26. Rxc4 {[%clk 0:00:09]}  Qxc3 {[%clk 0:01:03]} 27. bxc3 {[%clk 0:00:08]}  Bxc4+ {[%clk 0:01:04]} 28. Kg1 {[%clk 0:00:09]}  Bxa2 {[%clk 0:01:04]} 29. f4 {[%clk 0:00:10]}  a5 {[%clk 0:01:04]} 30. Kf2 {[%clk 0:00:10]}  a4 {[%clk 0:01:04]} 31. Nc2 {[%clk 0:00:11]}  Bd5 {[%clk 0:01:01]} 32. Na3 {[%clk 0:00:09]}  Kg8 {[%clk 0:01:01]} 33. c4 {[%clk 0:00:10]}  Bc6 {[%clk 0:01:00]} 34. Ke3 {[%clk 0:00:10]}  Bxg2 {[%clk 0:01:00]} 35. Kd4 {[%clk 0:00:10]}  Kf7 {[%clk 0:01:00]} 36. Kc5 {[%clk 0:00:10]}  Kg6 {[%clk 0:01:00]} 37. Nc2 {[%clk 0:00:09]}  Be4 {[%clk 0:00:58]} 38. Nb4 {[%clk 0:00:06]}  Kh5 {[%clk 0:00:57]} 39. Kb5 {[%clk 0:00:06]}  Kg4 {[%clk 0:00:53]} 0-1


[Site "https://www.chess.com"]

[Event "Titled Tuesday Blitz May 30 Late 2023"]
[White "Ibarra Jerez, Jose Carlos"]
[Black "Pranav, V"]
[WhiteFideId "2226332"]
[BlackFideId "25060783"]
[WhiteElo "2638"]
[BlackElo "2515"]
[Result "0-1"]
[Round "08"]
[TimeControl "180+2"]
[Date "2023.05.31"]
[WhiteClock "0:00:32"]
[BlackClock "0:01:05"]

1. e4 {[%clk 0:03:00]}  e5 {[%clk 0:03:00]} 2. Nf3 {[%clk 0:03:00]}  Nc6 {[%clk 0:03:00]} 3. Nc3 {[%clk 0:03:00]}  Nf6 {[%clk 0:03:00]} 4. h3 {[%clk 0:03:01]}  g6 {[%clk 0:02:59]} 5. d4 {[%clk 0:03:00]}  exd4 {[%clk 0:03:00]} 6. Nxd4 {[%clk 0:03:01]}  Bg7 {[%clk 0:03:00]} 7. Nxc6 {[%clk 0:03:01]}  bxc6 {[%clk 0:03:00]} 8. Bd3 {[%clk 0:02:58]}  O-O {[%clk 0:03:00]} 9. O-O {[%clk 0:02:58]}  d6 {[%clk 0:03:00]} 10. Bg5 {[%clk 0:02:57]}  h6 {[%clk 0:02:59]} 11. Be3 {[%clk 0:02:57]}  Re8 {[%clk 0:02:58]} 12. Qd2 {[%clk 0:02:57]}  Kh7 {[%clk 0:02:58]} 13. f4 {[%clk 0:02:56]}  d5 {[%clk 0:02:58]} 14. exd5 {[%clk 0:02:38]}  cxd5 {[%clk 0:02:50]} 15. Ne2 {[%clk 0:02:09]}  Qe7 {[%clk 0:02:42]} 16. Bf2 {[%clk 0:02:01]}  c5 {[%clk 0:02:38]} 17. b3 {[%clk 0:01:53]}  c4 {[%clk 0:02:21]} 18. bxc4 {[%clk 0:01:47]}  dxc4 {[%clk 0:02:21]} 19. Bxc4 {[%clk 0:01:47]}  Ne4 {[%clk 0:02:21]} 20. Qd5 {[%clk 0:01:45]}  Bxa1 {[%clk 0:01:51]} 21. Qxa8 {[%clk 0:01:40]}  Nxf2 {[%clk 0:01:50]} 22. Rxa1 {[%clk 0:01:32]}  Nxh3+ {[%clk 0:01:37]} 23. Kh2 {[%clk 0:01:14]}  Nf2 {[%clk 0:01:21]} 24. Qf3 {[%clk 0:00:39]}  Ng4+ {[%clk 0:01:04]} 25. Kg3 {[%clk 0:00:32]}  Qf6 {[%clk 0:01:05]} 0-1


[Site "https://www.chess.com"]

[Event "Titled Tuesday Blitz May 30 Late 2023"]
[White "Maksimovic, Bojan"]
[Black "Naroditsky, Daniel"]
[WhiteFideId "14408120"]
[BlackFideId "2026961"]
[WhiteElo "2468"]
[BlackElo "2633"]
[Result "1/2-1/2"]
[Round "08"]
[TimeControl "180+2"]
[Date "2023.05.31"]
[WhiteClock "0:00:48"]
[BlackClock "0:01:09"]

1. Nf3 {[%clk 0:02:55]}  Nf6 {[%clk 0:02:59]} 2. g3 {[%clk 0:02:53]}  g6 {[%clk 0:02:59]} 3. Bg2 {[%clk 0:02:53]}  Bg7 {[%clk 0:02:59]} 4. O-O {[%clk 0:02:53]}  O-O {[%clk 0:03:00]} 5. d3 {[%clk 0:02:54]}  d6 {[%clk 0:02:57]} 6. Nbd2 {[%clk 0:02:54]}  c5 {[%clk 0:02:56]} 7. e4 {[%clk 0:02:52]}  Bg4 {[%clk 0:02:55]} 8. h3 {[%clk 0:02:52]}  Bxf3 {[%clk 0:02:55]} 9. Nxf3 {[%clk 0:02:52]}  Nc6 {[%clk 0:02:56]} 10. Re1 {[%clk 0:02:51]}  Nd7 {[%clk 0:02:55]} 11. c3 {[%clk 0:02:51]}  b5 {[%clk 0:02:51]} 12. d4 {[%clk 0:02:37]}  b4 {[%clk 0:02:50]} 13. Be3 {[%clk 0:02:35]}  bxc3 {[%clk 0:02:50]} 14. bxc3 {[%clk 0:02:35]}  Qa5 {[%clk 0:02:48]} 15. e5 {[%clk 0:02:18]}  cxd4 {[%clk 0:02:27]} 16. cxd4 {[%clk 0:01:55]}  dxe5 {[%clk 0:02:18]} 17. dxe5 {[%clk 0:01:15]}  Rad8 {[%clk 0:02:13]} 18. e6 {[%clk 0:01:15]}  fxe6 {[%clk 0:01:31]} 19. Rc1 {[%clk 0:01:13]}  Nde5 {[%clk 0:01:23]} 20. Qb3 {[%clk 0:01:08]}  Qd5 {[%clk 0:01:10]} 21. Nxe5 {[%clk 0:01:03]}  Qxb3 {[%clk 0:01:09]} 22. axb3 {[%clk 0:01:01]}  Nxe5 {[%clk 0:01:09]} 23. Rc7 {[%clk 0:00:48]} 1/2-1/2


[Site "https://www.chess.com"]

[Event "Titled Tuesday Blitz May 30 Late 2023"]
[White "Moussard, Jules"]
[Black "Grigoriants, Sergey"]
[WhiteFideId "642908"]
[BlackFideId "4130804"]
[WhiteElo "2610"]
[BlackElo "2502"]
[Result "1-0"]
[Round "08"]
[TimeControl "180+2"]
[Date "2023.05.31"]
[WhiteClock "0:01:06"]
[BlackClock "0:00:10"]

1. e4 {[%clk 0:03:00]}  e5 {[%clk 0:02:55]} 2. Nf3 {[%clk 0:03:01]}  Nc6 {[%clk 0:02:54]} 3. Bc4 {[%clk 0:03:01]}  Bc5 {[%clk 0:02:54]} 4. O-O {[%clk 0:03:01]}  Nf6 {[%clk 0:02:54]} 5. d3 {[%clk 0:03:02]}  d6 {[%clk 0:02:54]} 6. c3 {[%clk 0:03:02]}  a6 {[%clk 0:02:53]} 7. a4 {[%clk 0:03:02]}  Ba7 {[%clk 0:02:53]} 8. Nbd2 {[%clk 0:02:59]}  O-O {[%clk 0:02:52]} 9. h3 {[%clk 0:02:59]}  h6 {[%clk 0:02:47]} 10. Re1 {[%clk 0:02:58]}  Re8 {[%clk 0:02:48]} 11. b4 {[%clk 0:02:58]}  Be6 {[%clk 0:02:48]} 12. Bxe6 {[%clk 0:02:59]}  Rxe6 {[%clk 0:02:48]} 13. Qc2 {[%clk 0:03:00]}  Qd7 {[%clk 0:02:48]} 14. Rb1 {[%clk 0:03:00]}  b5 {[%clk 0:02:36]} 15. Ra1 {[%clk 0:03:00]}  Ree8 {[%clk 0:02:35]} 16. Nf1 {[%clk 0:02:54]}  d5 {[%clk 0:02:19]} 17. Ng3 {[%clk 0:02:52]}  d4 {[%clk 0:02:14]} 18. Bd2 {[%clk 0:02:47]}  dxc3 {[%clk 0:01:49]} 19. Bxc3 {[%clk 0:02:48]}  Rad8 {[%clk 0:01:49]} 20. Red1 {[%clk 0:02:25]}  Bb6 {[%clk 0:01:38]} 21. Nf5 {[%clk 0:02:23]}  g6 {[%clk 0:01:22]} 22. Nxh6+ {[%clk 0:02:08]}  Kg7 {[%clk 0:01:23]} 23. Qd2 {[%clk 0:01:56]}  bxa4 {[%clk 0:00:58]} 24. Nf5+ {[%clk 0:01:39]}  Kg8 {[%clk 0:00:50]} 25. Qh6 {[%clk 0:01:37]}  gxf5 {[%clk 0:00:48]} 26. Qxf6 {[%clk 0:01:37]}  Qe6 {[%clk 0:00:47]} 27. Qh4 {[%clk 0:01:26]}  fxe4 {[%clk 0:00:42]} 28. dxe4 {[%clk 0:01:21]}  Rxd1+ {[%clk 0:00:36]} 29. Rxd1 {[%clk 0:01:22]}  Qg6 {[%clk 0:00:37]} 30. Nxe5 {[%clk 0:01:14]}  Qg7 {[%clk 0:00:11]} 31. Ng4 {[%clk 0:01:06]}  Qxc3 {[%clk 0:00:10]} 32. Nf6+ {[%clk 0:01:06]} 1-0


[Site "https://www.chess.com"]

[Event "Titled Tuesday Blitz May 30 Late 2023"]
[White "Muradli, Mahammad"]
[Black "Thomforde-Toates, Noah"]
[WhiteFideId "13409301"]
[BlackFideId "30951992"]
[WhiteElo "2558"]
[BlackElo "2763"]
[Result "1-0"]
[Round "08"]
[TimeControl "180+2"]
[Date "2023.05.31"]
[WhiteClock "0:00:57"]
[BlackClock "0:00:35"]

1. d4 {[%clk 0:03:00]}  Nf6 {[%clk 0:02:59]} 2. c4 {[%clk 0:03:00]}  g6 {[%clk 0:02:59]} 3. Nc3 {[%clk 0:03:00]}  Bg7 {[%clk 0:02:59]} 4. e4 {[%clk 0:03:01]}  d6 {[%clk 0:03:00]} 5. Be2 {[%clk 0:03:01]}  O-O {[%clk 0:03:00]} 6. Be3 {[%clk 0:03:01]}  c5 {[%clk 0:03:00]} 7. d5 {[%clk 0:02:57]}  e6 {[%clk 0:03:00]} 8. Nf3 {[%clk 0:02:57]}  exd5 {[%clk 0:03:00]} 9. cxd5 {[%clk 0:02:57]}  Re8 {[%clk 0:02:56]} 10. Nd2 {[%clk 0:02:57]}  Na6 {[%clk 0:02:40]} 11. Bxa6 {[%clk 0:02:34]}  bxa6 {[%clk 0:02:40]} 12. f3 {[%clk 0:02:34]}  Bd7 {[%clk 0:02:39]} 13. O-O {[%clk 0:02:32]}  Rb8 {[%clk 0:02:38]} 14. Qc2 {[%clk 0:02:25]}  Bb5 {[%clk 0:02:33]} 15. Rfe1 {[%clk 0:02:24]}  Nh5 {[%clk 0:02:27]} 16. a4 {[%clk 0:02:22]}  Bd7 {[%clk 0:02:26]} 17. Nc4 {[%clk 0:02:23]}  Qe7 {[%clk 0:02:20]} 18. g4 {[%clk 0:02:16]}  Nf6 {[%clk 0:01:49]} 19. Bf4 {[%clk 0:02:08]}  Nxg4 {[%clk 0:01:46]} 20. fxg4 {[%clk 0:01:57]}  Bxg4 {[%clk 0:01:45]} 21. Qg2 {[%clk 0:01:45]}  Bd4+ {[%clk 0:01:40]} 22. Kh1 {[%clk 0:01:45]}  Qh4 {[%clk 0:01:39]} 23. Bxd6 {[%clk 0:01:36]}  Qh5 {[%clk 0:01:34]} 24. Rf1 {[%clk 0:01:20]}  Rb3 {[%clk 0:00:58]} 25. Bg3 {[%clk 0:01:02]}  Bh3 {[%clk 0:00:39]} 26. Qf3 {[%clk 0:01:01]}  Bxf1 {[%clk 0:00:37]} 27. Qxh5 {[%clk 0:00:56]}  gxh5 {[%clk 0:00:36]} 28. Rxf1 {[%clk 0:00:56]}  Bxc3 {[%clk 0:00:36]} 29. bxc3 {[%clk 0:00:57]}  Rxe4 {[%clk 0:00:35]} 30. Nd2 {[%clk 0:00:57]} 1-0


[Site "https://www.chess.com"]